Cogmind - Beta 13 @@@ ROGUE MODE // 2024.04.01 @ 15:58:29 Player: Toa of Guts Result: Destroyed by D-53 Grenadier with Mini Grenade Launcher Performance ------------- Evolutions (1) 500 Regions Visited (4) 800 Robots Destroyed (48) 240 Value Destroyed (970) 970 Prototype IDs (0) 0 Alien Tech Used (0) 0 Bonus (12) 12 TOTAL SCORE: 2522 Bonus ------- High Alert Combat Kills 12 Cogmind --------- Core Integrity 0/400 Matter 101/300 Energy 75/100 System Corruption 8% Temperature Cool (0) Movement Core (350) Ox6 Location -9/Mines Parts ------- > --- POWER (1) -------- (None) > --- PROPULSION (2) --- (None) > --- UTILITY (4) ------ Large Storage Unit Signal Interpreter > --- WEAPON (2) ------- Mini Grenade Launcher > --- INVENTORY (15) --- Light Ion Engine Improved Ion Engine Sensor Array Sensor Array Signal Interpreter ECM Suite Assault Rifle Peak State ------------ > --- POWER ------------ Ion Engine > --- PROPULSION ------- Wheel Wheel > --- UTILITY ---------- Large Storage Unit Sensor Array Signal Interpreter Hardened Light Armor Plating > --- WEAPON ----------- Mini Grenade Launcher Mini Grenade Launcher > --- INVENTORY -------- Light Ion Engine Aluminum Leg Aluminum Leg Compact Wheel Sensor Array ECM Suite Hardened Light Armor Plating Hardened Light Armor Plating Assault Rifle Assault Rifle Light Assault Rifle Light Assault Rifle Rocket Launcher [Rating: 13] Favorites ----------- Power Ion Engine Engine Ion Engine Propulsion Light Treads Treads Light Treads Leg Aluminum Leg Wheel Wheel Utility Hardened Light Armor Plating Device Sensor Array Storage Large Storage Unit Processor Signal Interpreter Protection Hardened Light Armor Plating Weapon Assault Rifle Energy Gun Small Laser Ballistic Gun Assault Rifle Launcher Mini Grenade Launcher Build | -11 -10 -10 -9 -9 ------- Run | Yrd Mat Min Mat Min Slots Evolved 2 | . . . 2 . Power . | . . . . . Propulsion . | . . . . . Utility 2 | . . . 2 . Weapon . | . . . . . Parts Attached 39 | 6 13 3 9 8 Power 2 | 1 . 1 . . Engine 2 | 1 . 1 . . Core . | . . . . . Reactor . | . . . . . Propulsion 7 | 2 . 2 1 2 Treads 2 | 2 . . . . Leg 2 | . . . . 2 Wheel 3 | . . 2 1 . Hover . | . . . . . Flight . | . . . . . Utility 12 | 1 7 . 3 1 Device 1 | . . . 1 . Storage 3 | 1 2 . . . Processor 1 | . 1 . . . Hackware . | . . . . . Protection 7 | . 4 . 2 1 Artifact . | . . . . . Weapon 18 | 2 6 . 5 5 Energy Gun 2 | 1 1 . . . Energy Cannon . | . . . . . Ballistic Gun 8 | 1 3 . 3 1 Ballistic Cannon . | . . . . . Launcher 8 | . 2 . 2 4 Special Weapon . | . . . . . Impact Weapon . | . . . . . Slashing Weapon . | . . . . . Piercing Weapon . | . . . . . Special Melee Weapon . | . . . . . Unidentified Prototypes . | . . . . . Parts Lost 17 | . 1 1 4 11 Power 1 | . . . . 1 Propulsion 6 | . . 1 2 3 Utility 3 | . . . 1 2 Weapon 7 | . 1 . 1 5 Highest Loss Streak 6 | . 1 1 3 6 To Critical Strikes . | . . . . . Average Slot Usage (%) 96 | . 98 99 95 78 Engine 12 | . 14 14 11 7 Treads 17 | . 28 20 . . Wheel 6 | . . 7 17 8 Device 3 | . . . 11 6 Storage 13 | . 14 14 11 11 Processor 6 | . . 14 11 11 Protection 10 | . 13 . 10 9 Ballistic Gun 19 | . 20 28 13 16 Launcher 4 | . 4 . 8 2 Naked Turns . | . . . . . Heaviest Build 34 | 12 34 29 34 34 Greatest Support 40 | 40 40 40 20 20 Greatest Overweight (x) 3 | 3 . 1 2 2 Average Overweight (x) . | 1 . . 1 1 Largest Inventory Capacity 15 | 8 15 15 15 15 Average Capacity 12 | 7 11 15 15 15 Most Carried 15 | 8 13 15 14 14 Average Carried 11 | 6 9 14 13 12 Final Capacity 15 | 8 15 15 15 15 Final Carried 15 | 6 13 15 13 7 Class Distribution -------------------- 94% | Mutant 5% | Scavenger-Mutant Dominant Class ---------------- Mutant | -10/Materials Mutant | -10/Mines Mutant | -9/Materials Mutant | -9/Mines Resources | -11 -10 -10 -9 -9 ----------- Run | Yrd Mat Min Mat Min Matter Collected 1331 | 219 606 93 355 58 Remotely . | . . . . . Salvage Created 910 | . 436 85 358 31 Parts 77 | . 29 10 38 . Haulers Intercepted . | . . . . . Recyclers Shooed . | . . . . . Parts Field Recycled . | . . . . . Retrieved Matter . | . . . . . Parts Self-Destructed . | . . . . . Prevented . | . . . . . Kills | -11 -10 -10 -9 -9 ------- Run | Yrd Mat Min Mat Min Combat Hostiles Destroyed 44 | . 15 6 12 11 Guns 21 | . 6 6 9 . AOE 23 | . 9 . 3 11 Classes Destroyed 8 | . 6 . 1 1 Worker 2 | . 1 . 1 . Builder 4 | . 1 . 3 . Operator 3 | . 2 . 1 . Watcher 6 | . 3 . 3 . Swarmer 19 | . 6 6 7 . Grunt 9 | . 9 . . . Sentry 5 | . . . 5 . Assembled 11 | . . . . 11 Best Kill Streak 11 | . 4 3 6 11 Combat Bots Only 11 | . 3 3 4 11 Max Kills in Single Turn 4 | . 3 1 4 3 Gunslinging 1 | . . . 1 . Exploded 3 | . 3 . 1 3 Melee . | . . . . . Uniques/NPCs Destroyed . | . . . . . Combat | -11 -10 -10 -9 -9 -------- Run | Yrd Mat Min Mat Min Hostile Shots Fired 218 | . 68 30 91 29 Missed 58 | . 19 8 27 4 Damage Taken 2692 | . 626 182 862 1022 Core 486 | . 53 32 161 240 Absorbed by Shields . | . . . . . Core Remaining (%) 83 | 100 . 66 . . Volleys Fired 164 | . 74 12 59 19 Largest 2 | . 2 2 2 2 Hottest 60 | . 60 40 60 60 Shots Fired 288 | . 131 24 112 21 Gun 232 | . 112 24 92 4 Cannon . | . . . . . Launcher 56 | . 19 . 20 17 Special . | . . . . . Kinetic 224 | . 104 24 92 4 Thermal 8 | . 8 . . . Explosive 56 | . 19 . 20 17 Electromagnetic . | . . . . . Robot Hit Streak 6 | . 6 4 6 4 Robot Miss Streak 5 | . 5 3 5 3 Penetration Max . | . . . . . Secondary Targets 3 | . . 1 2 . Max Gunslinging Chain 1 | . . 1 1 . Shots Hit Robots 136 | . 58 11 58 9 Core Hits 108 | . 38 6 33 31 Critical Kills . | . . . . . Critical Parts Destroyed 2 | . 2 . . . Critical Strikes 2 | . 2 . . . Destroy 2 | . 2 . . . Melee Attacks . | . . . . . Impact . | . . . . . Slashing . | . . . . . Piercing . | . . . . . Sneak Attacks . | . . . . . Combat Hostiles . | . . . . . Follow-up Attacks . | . . . . . Damage Inflicted 3278 | . 1350 145 1013 770 Guns 1213 | . 610 145 447 11 Cannons . | . . . . . Explosions 2065 | . 740 . 566 759 Melee . | . . . . . Ramming . | . . . . . Kinetic 1170 | . 567 145 447 11 Thermal 43 | . 43 . . . Explosive 2065 | . 740 . 566 759 Electromagnetic . | . . . . . Impact . | . . . . . Slashing . | . . . . . Piercing . | . . . . . Highest Corruption 8 | . . . . 8 Average Corruption 8 | . . . . 8 Corruption Purged . | . . . . . Corruption Blocked . | . . . . . Effects 1 | . . . . 1 Data Loss (minor) 1 | . . . . 1 Overload Shots . | . . . . . Overflow Damage 47 | . 8 . 22 17 Projectiles . | . . . . . Explosions 47 | . 8 . 22 17 Melee . | . . . . . Knockbacks . | . . . . . Impact . | . . . . . Kinetic . | . . . . . Secondary . | . . . . . Self-Inflicted Damage 334 | . 110 . 120 104 Shots 13 | . 5 . 4 4 Rammed . | . . . . . Targets Rammed . | . . . . . Kicked . | . . . . . Crushed . | . . . . . Highest Temperature 78 | . 78 . 48 34 Average Temperature 12 | . 16 . 8 13 Received Heat Transfer 562 | . 252 . 150 160 Siege Activations . | . . . . . Robots Corrupted . | . . . . . Combat Hostiles . | . . . . . Parts Fried . | . . . . . Impact Corruptions . | . . . . . Robots Melted . | . . . . . Combat Hostiles . | . . . . . Parts Melted . | . . . . . Heat Transferred 100 | . 100 . . . Parts Sabotaged . | . . . . . Parts Stolen . | . . . . . Parts Stripped . | . . . . . Power Chain Reactions . | . . . . . Alert | -11 -10 -10 -9 -9 ------- Run | Yrd Mat Min Mat Min Peak Influence 498 | . 290 130 498 193 Initial 153 | . . 60 27 153 Average 166 | . 146 75 290 157 Maximum Alert Level 2 | . 1 . 2 . Low Security (%) 68 | 100 72 100 27 100 Level 1 29 | . 27 . 65 . Level 2 1 | . . . 7 . Level 3 . | . . . . . Level 4 . | . . . . . Level 5 . | . . . . . High Security . | . . . . . Max Security . | . . . . . Squads Dispatched 3 | . 3 . . . Investigation . | . . . . . Extermination . | . . . . . Reinforcement 3 | . 3 . . . Assault . | . . . . . Garrison . | . . . . . Intercept . | . . . . . Searches Triggered . | . . . . . Construction Impeded . | . . . . . Haulers Reinforced . | . . . . . Active Scanning Responses . | . . . . . Cargo Convoy Interrupts . | . . . . . Stealth | -11 -10 -10 -9 -9 --------- Run | Yrd Mat Min Mat Min Distress Signals 2 | . 1 . 1 . Communications Jammed . | . . . . . Distress Signals . | . . . . . Times Spotted 73 | . 32 6 21 14 Peak Tracking Total 7 | . 3 3 6 7 Tactical Retreats 1 | . . . . 1 Traps | -11 -10 -10 -9 -9 ------- Run | Yrd Mat Min Mat Min Traps Triggered . | . . . . . Indirectly . | . . . . . Trap Hack Attempts . | . . . . . Triggered . | . . . . . Disarmed . | . . . . . Reprogrammed . | . . . . . Reused . | . . . . . Traps Extracted . | . . . . . Installed . | . . . . . Triggered . | . . . . . Machines | -11 -10 -10 -9 -9 ---------- Run | Yrd Mat Min Mat Min Machines Disabled 7 | . 4 . 3 . Max in Single Turn 1 | . 1 . 1 . Machines Repaired . | . . . . . Machines Dismantled . | . . . . . Machines Sabotaged . | . . . . . Overloaded Fab Kills . | . . . . . Hacking | -11 -10 -10 -9 -9 --------- Run | Yrd Mat Min Mat Min Machines Accessed 2 | . 1 . . 1 Terminals 1 | . 1 . . . Fabricators . | . . . . . Repair Stations . | . . . . . Recycling Units . | . . . . . Scanalyzers . | . . . . . Garrison Access . | . . . . . Total Hacks 5 | . 4 . . 1 Successful 5 | . 4 . . 1 Failed . | . . . . . Catastrophic . | . . . . . Database Lockouts . | . . . . . Manual . | . . . . . Terminals 4 | . 4 . . . Fabricators . | . . . . . Repair Stations . | . . . . . Recycling Units . | . . . . . Scanalyzers . | . . . . . Garrison Access . | . . . . . Terminal Hacks 5 | . 4 . . 1 Record 3 | . 3 . . . Robot Analysis 1 | . 1 . . . Open Door 1 | . . . . 1 Fabricator Hacks . | . . . . . Repair Station Hacks . | . . . . . Recycling Unit Hacks . | . . . . . Scanalyzer . | . . . . . Garrison Access Hacks . | . . . . . Unauthorized Hacks . | . . . . . Terminals . | . . . . . Fabricators . | . . . . . Repair Stations . | . . . . . Recycling Units . | . . . . . Scanalyzers . | . . . . . Garrison Access . | . . . . . Data Cores Recovered . | . . . . . Used . | . . . . . Hacking Detections 1 | . 1 . . . Full Trace Events . | . . . . . Feedback Events . | . . . . . Feedback Blocked . | . . . . . Robot Schematics Acquired . | . . . . . Robots Built . | . . . . . Authchips . | . . . . . Time . | . . . . . Total Robot Build Rating . | . . . . . Part Schematics Acquired . | . . . . . Parts Built . | . . . . . Authchips . | . . . . . Time . | . . . . . Total Part Build Rating . | . . . . . Parts Repaired . | . . . . . Time . | . . . . . Parts Recycled . | . . . . . Recycled Matter . | . . . . . Retrieved Matter . | . . . . . Retrieved Components . | . . . . . Parts Scanalyzed . | . . . . . Part Schematics Acquired . | . . . . . Parts Damaged . | . . . . . Bothacking | -11 -10 -10 -9 -9 ------------ Run | Yrd Mat Min Mat Min Used RIF Installer . | . . . . . Robots Hacked . | . . . . . Non-combat . | . . . . . Combat . | . . . . . Robot Hacks Applied . | . . . . . Relay Couplers Released . | . . . . . Fabnet Peak Effective % . | . . . . . Robots Rewired . | . . . . . Allies Hacked . | . . . . . Hacks Repelled . | . . . . . Allies | -11 -10 -10 -9 -9 -------- Run | Yrd Mat Min Mat Min Total Allies . | . . . . . Largest Group . | . . . . . Highest-Rated Group . | . . . . . Highest-Rated Ally . | . . . . . Total Orders . | . . . . . Ally Attacks . | . . . . . Total Damage . | . . . . . Kills . | . . . . . Allies Corrupted . | . . . . . Allies Melted . | . . . . . Intel | -11 -10 -10 -9 -9 ------- Run | Yrd Mat Min Mat Min Robot Analysis Total 1 | . 1 . . . Derelict Logs Recovered 2 | . . 2 . . Drone Launches . | . . . . . Drone Recoveries . | . . . . . Exploration | -11 -10 -10 -9 -9 ------------- Run | Yrd Mat Min Mat Min Turns Passed 3122 | 61 1523 575 771 192 Spaces Moved 1795 | 31 801 383 474 106 Core 30 | 30 . . . . Treads 1040 | 1 801 238 . . Legs 11 | . . . . 11 Wheels 714 | . . 145 474 95 Hover . | . . . . . Flight . | . . . . . Fastest Speed 50 | 50 160 95 95 115 Average Speed 139 | 150 160 135 108 136 Slowest Speed 240 | 200 160 240 130 190 Overloaded Moves . | . . . . . Propulsion Burnouts . | . . . . . Robots Hopped . | . . . . . Cave-ins Triggered 1 | . . . . 1 Exploration Rate (%) 51 | 4 90 88 44 29 Regions Visited 4 Branch Regions 2 Pre-discovered Areas . | . . . . . Known Exits Taken 3 | . 1 1 1 . Unknown Exits Taken 1 | 1 . . . . Scrap Searched 2 | . . 1 . 1 Spaces Dug . | . . . . . Terrain Destroyed 320 | . 106 . 122 92 Melee . | . . . . . Projectile . | . . . . . AOE 320 | . 106 . 122 92 Terrain Rammed . | . . . . . Walls Destroyed . | . . . . . Machines Disabled . | . . . . . Actions | -11 -10 -10 -9 -9 --------- Run | Yrd Mat Min Mat Min Total 2147 | 44 920 415 634 134 Wait 105 | . 4 11 90 . Move 1791 | 30 800 382 473 106 Hop . | . . . . . Pick Up 33 | 8 17 5 3 . Fast Attach 4 | 4 . . . . Attach 20 | 2 4 2 5 7 Detach 2 | . 1 . . 1 Swap 15 | . 9 1 4 1 Drop 13 | . 11 2 . . Fire 164 | . 74 12 59 19 Melee . | . . . . . Ram . | . . . . . Kick . | . . . . . Crush . | . . . . . Escape Stasis . | . . . . . Rewire . | . . . . . Trap . | . . . . . Miscellaneous . | . . . . . Route ------- -11/Scrapyard -10/Materials (discovered 4 exits: *Mat x2 / *Min x2) -10/Mines -9/Materials (discovered 2 exits: *Mat / *Min) -9/Mines History --------- Turn | Location | Event 18 | -11/Scrapyard | Discovered new exit (range 15) 62 | -11/Scrapyard | Entered Materials 308 | -10/Materials | Build established: Mutant 348 | -10/Materials | Discovered new exit (range 16) 621 | -10/Materials | Discovered new exit (range 16) 827 | -10/Materials | Discovered new exit (range 6) 996 | -10/Materials | Discovered new exit (range 8) 1585 | -10/Materials | Identified exit to Mines 1585 | -10/Materials | Entered Mines 1927 | -10/Mines | Learned Materials emergency access door positions 2020 | -10/Mines | Learned Materials interactive machine intel 2077 | -10/Mines | Received a Rocket Launcher from a helpful Derelict 2093 | -10/Mines | Discovered new exit (range 10) 2100 | -10/Mines | Identified exit to Materials 2160 | -10/Mines | Entered Materials 2160 | -9/Materials | Evolved 2 slots: Utility x2 2162 | -9/Materials | Loaded intel: 18 interactive machine locations 2420 | -9/Materials | Discovered new exit (range 4) 2423 | -9/Materials | Identified exit to Materials 2696 | -9/Materials | Lost 3 parts (2n1w) 2916 | -9/Materials | Discovered new exit (range 6) 2921 | -9/Materials | Identified exit to Mines 2931 | -9/Materials | Entered Mines 2939 | -9/Mines | Met a Derelict bent on vengeance 2943 | -9/Mines | Found the Drone Emporium 3046 | -9/Mines | Assembled infested the area 3079 | -9/Mines | Crushed by falling debris 3079 | -9/Mines | Core integrity fell below 50% 3079 | -9/Mines | Core integrity fell below 20% 3110 | -9/Mines | Destroyed 11 combat bots 3110 | -9/Mines | Lost 5 parts (1p1n1u2w) 3123 | -9/Mines | Destroyed by D-53 Grenadier with Mini Grenade Launcher Last Messages --------------- Grenade Launcher destroyed. System corrupted by crushing effect (+4). The unstable cave ceiling collapses. Destroyed Asb. F-torch. as-40597 destroyed. The unstable cave ceiling collapses. as-45813 destroyed. The unstable cave ceiling collapses. Acquired 3 matter. Acquired 12 matter. System corrupted: Component data lost. T-07 Excavator destroyed. Assault Rifle destroyed. Hrd. Light Armor Plating destroyed. Rocket Launcher destroyed. The unstable cave ceiling collapses. Aluminum Leg destroyed. The unstable cave ceiling collapses. Aluminum Leg destroyed. Mni. Grenade Launcher destroyed. Map ----- +----------------------------------------------------+ | "#???????????????????????????????????????????????? | | #????????????????????????????????????????????????? | | ##???????????????????????????????????????????????? | | #???????????????????????????????????????????????? | | ##??????????????????????????????????????????????? | | #??????????????????????????????????????????????? | | #??????????????????????????????????????????????? | | #??????????????????????????????????????????????? | | #??????????????????????????????????????????????? | | #??????????????????????????????????????????????? | | ###??????????????????????????????????????????????? | | ?????????????????????????????????????????????????? | | ?????????????????????????????????????????????????? | | #### ????????????????????????????????????? | | #???????????????????????????????????????????? | | ######???????????????????????????????????????????? | | ?????????????????????????????????????????????????? | | ???????????????????######????????????????????????? | | ???????????????##### #????????????????????????? | | ?????????????### ## # ##???????????????????????? | | ????????###### ####????????????????????? | | ???????## # # ##???????????????????? | | ????#### ##??????????????????? | | ??### # #??????????????????? | | ?## ## ##?????????????????? | | ## ### @ #?????????????????? | | ##?## #?????????????????? | | #??# ### #???????????????? | | #### #??# #?## #????????????? | | ???# ### #??# ##??## #???????????? | | ???# #?# #?# #????# d # ??????????? | | ?### #?# #?# #????## d #??????????? | | ## #?# #?# ?????### #??????????? | | #?# #?# ????????# ???????????? | | #?# #?# ????????? < ???????????? | | ##?# #?## ?????????# ????????????? | | # #??# #??### ?????????? ##????????????? | | # ##??# #?????#??????????### ##??????????????? | | #???? #???????????????????# ????????????????? | | #???? #?????????????????????????????????????? | | ##????? ??????????????????????????????????????? | | ##?????????????????????????????????????????????? | | ##??????????????????????????????????????????????? | | ##???????????????????????????????????????????????? | | #????????????????????????????????????????????????? | | ?????????????????????????????????????????????????? | | ?????????????????????????????????????????????????? | | ?????????????????????????????????????????????????? | | ?????????????????????????????????????????????????? | | ?????????????????????????????????????????????????? | +----------------------------------------------------+ Best States ------------- Heat Dissipation 28 Energy Generation 10 Energy Capacity 250 Matter Stores 300 Matter Capacity 300 Sight Range 16 Robot Scan Range 14 Terrain Scan Density 10 Armor Coverage 150 Evasion (%) 41 Recoil Reduction 2 Item Schematics ----------------- None Robot Schematics ------------------ None Fabricated ------------ Nothing Alien Tech Used ----------------- None Achievements -------------- None Challenges ------------ None Game ------ Seed AluminumPointyPerforator Manual? 0 Play Time 00:37:44 Cumulative 13.6 hours Start 2024.04.01 @ 15:20:14 End 2024.04.01 @ 15:58:29 Sessions 1 Manual Loads 0 Difficulty Rogue Special Mode None Game No. 14 Rogue 14 Adventurer 0 Explorer 0 Win Type - Total 0 Types 0/0/0/0/0/0/0/0/0 Lore% 12 Gallery% 16 Achievement% 14 Wizard Run 0 Options --------- Layout 0 ASCII 0 Keyboard 0 Movement Mouse Keybinds 0 Fullscreen 1 Font 24/X11 Map View 76x50 Zoom Use 0% Tactical HUD 0 Map Filters NONE Filters NONE Steam 1 RUN: c1e154b6-9c88-49f7-aba2-e0a48e5cffc2